{"text_format":"3","workbook":"xlsx","n_sheets":2,"sheets":["Instructions","Facture"],"not_rendered":{"defined_names":1},"read":"whole","date_system":"1900"}

{"sheet":"Instructions","index":0,"n_rows":69,"n_cols":17,"rows_kept":69,"merged":[[1,1,21,14],[1,16,16,20],[22,22,22,24],[22,25,22,30],[24,1,39,14],[41,1,41,9],[41,10,41,15],[44,1,55,14],[58,1,66,14],[68,1,68,9],[68,10,68,14]]}
[]
[null,"\n1- Instructions concernant l'impression\n\nZone d’Impression Définie :\nAttention : Ce modèle a une zone d’impression prédéfinie. Cela signifie que seules les cellules incluses dans cette zone seront imprimées par défaut.\nLa zone d’impression est délimitée par des lignes pointillées dans l’aperçu avant impression.\nElle sert à éviter les impressions accidentelles de parties non essentielles de la feuille de calcul.\n\nPour Imprimer la Zone Définie :\nSi vous souhaitez imprimer uniquement la zone d’impression, il vous suffit de lancer l’impression comme d’habitude.\nVérifiez l’aperçu avant impression pour vous assurer que la zone d’impression est correcte.\n\nPour Annuler la Zone d’Impression :\nSi vous avez besoin d’imprimer au-delà de la zone définie, suivez ces étapes :\nAllez dans l’onglet “Mise en page”.\nDans le groupe “Mise en page”, cliquez sur “Zone d’impression”, puis sur “Annuler la zone d’impression”.\nMaintenant, vous pouvez définir vous-même ce qui va être imprimé en utilisant l'aperçu des sauts de pages.",{"$nulls":14},"Votre avis compte!\n\nAprès avoir utilisé ce modèle Excel, n’hésitez pas à partager vos impressions sur le lien ci-dessous.\n\nVos commentaires nous aident à améliorer et à affiner nos outils pour mieux répondre à vos besoins.\n\nMerci d’avance pour votre contribution !"]
{"$rows_empty":16}
[{"$nulls":16},"https://officepourtous.com/modeles-factures-excel/"]
[]
[]
[]
[]
[]
[null,"\n2- Liste déroulante de la colonne \"Unité de mesure\" de la feuille principale:\n\nDans la liste déroulante, vous pouvez choisir entre : Forfait; Unités; mètre linéaire; m²; Kg; et Heures.\n\n- Forfait (pour les services avec tarifs fixes).\n- Unités (pour les produits vendus en quantités; peut être utilisé aussi pour les Lots et Boîtes).\n- mètre linéaire (pour les articles mesurables en longueur)\n- m² (pour les travaux de surface).\n- Kg (pour les produits pondérables).\n- Heures (pour les services facturés par heure).\n\nCes éléments de la liste déroulante sont à gérer directement par la commande \"Validation des données\" (voir lien ci-dessous)."]
{"$rows_empty":16}
[null,"Pour plus d'informations sur comment créer et gérer les listes déroulantes dans Excel, voir:",{"$nulls":8},"https://officepourtous.com/liste-deroulante-excel/"]
[]
[]
[null,"\n3- Formules de la colonne \"Total par article (HT)\":\n\nL'utilisation des fonctions SI et SOMME permet de gérer les cas de non saisie des valeurs nécessaires, de saisie de texte à la place de nombres, et de saisie des nombres négatifs ou de 0:\n\n- En cas de non saisie des valeurs : Pas d'affichage de 0 comme résultat (Rien n'est affiché). \n- En cas de saisie de texte à la place de nombres : Pas d'affichage de l'erreur #VALEUR comme résultat (Rien n'est affiché).\n- En cas de saisie de 0 ou de nombres négatifs : Pas de calcul et rien n'est affiché."]
{"$rows_empty":13}
[null,"\n4- Ajouter une ligne d'article au tableau:\n\nSi vous avez rempli toutes les lignes d'articles du tableau et avez besoin d'encore plus, ajoutez-en une ligne en allant à la dernière cellule (au niveau de la colonne \"Total par article (HT)\" au dessus de la cellule abritant le résultat calculé du Total HT), puis appuyez sur la touche Tabulation de votre clavier. Excel insérera une ligne supplémentaire tout en conservant le même style du tableau."]
{"$rows_empty":9}
[null,"La structure en tableau propose beaucoup d'autres avantages; pour en savoir plus, consultez :",{"$nulls":8},"https://officepourtous.com/creer-tableau-excel/"]

{"sheet":"Facture","index":1,"n_rows":47,"n_cols":6,"rows_kept":47,"merged":[[1,1,1,2],[1,3,1,5],[2,1,4,1],[2,2,2,3],[2,4,2,5],[3,2,3,3],[3,4,3,5],[4,2,4,3],[4,4,4,5],[5,1,5,2],[6,1,6,2],[7,1,7,2],[8,1,8,2],[9,1,9,2],[10,1,10,2],[11,1,11,2],[12,3,12,5],[13,3,13,5],[43,2,43,5],[44,1,44,3],[46,1,46,5],[48,2,48,3]]}
[]
[null,"L’espace réservé au logo figure dans cette cellule.",null,"Facture"]
[null,"Nom Entreprise / Entrepreneur","Date :"]
[null,null,"N° de facture :"]
[null,null,"Référence client :"]
[null,"À :"]
[null,"Nom du client"]
[null,"Nom de la société"]
[null,"Adresse"]
[null,"Code postal, Ville"]
[null,"Email :"]
[null,"Téléphone :"]
[null,"Modes de paiement","Date d’échéance","Conditions de paiement"]
[null,"Virement bancaire; chèque","2024-03-29","Dû à la réception de la facture"]
[]
[null,"Description","Quantité","Unité de mesure","Prix unitaire\n(HT)","Total par article\n(HT)"]
[null,"Rénovation complète de salle de bains",1,"Forfait",{"v":3000,"d":"3,000.00 €"},{"$f":"IF(SUM(C17)>0, IF(SUM(E17)>0,SUM(C17*E17),\"\"),\"\")","v":{"v":3000,"d":"3,000.00 €"}}]
[null,"Interrupteur va et vient",12,"Unités",{"v":8.5,"d":"8.50 €"},{"v":102,"d":"102.00 €"}]
[null,"Tube PVC diamètre 100 mm",8,"mètre linéaire",{"v":4.5,"d":"4.50 €"},{"v":36,"d":"36.00 €"}]
[null,"Carrelage en céramique blanc",30,"m²",{"v":25,"d":"25.00 €"},{"v":750,"d":"750.00 €"}]
[null,"Ciment multi-usage",15,"Kg",{"v":8,"d":"8.00 €"},{"v":120,"d":"120.00 €"}]
[null,"Travaux de bétonnage",7,"Heures",{"v":100,"d":"100.00 €"},{"v":700,"d":"700.00 €"}]
[{"$nulls":5},""]
[{"$nulls":5},""]
[{"$nulls":5},""]
[{"$nulls":5},""]
[{"$nulls":5},""]
[{"$nulls":5},""]
[{"$nulls":5},""]
[{"$nulls":5},""]
[{"$nulls":5},""]
[{"$nulls":5},""]
[{"$nulls":5},""]
[{"$nulls":5},""]
[{"$nulls":5},""]
[{"$nulls":5},""]
[{"$nulls":5},""]
[{"$nulls":5},""]
[{"$nulls":4},"Total HT",{"$f":"IF(SUM(F17:F38)>0,SUM(F17:F38),\"\")","v":{"v":4708,"d":"4,708.00 €"}}]
[{"$nulls":4},"T.V.A.",{"v":0.1,"d":"10.00%"}]
[{"$nulls":4},"Total TTC",{"$f":"IF(SUM(F39)>0,SUM((F39*F40)+F39),\"\")","v":{"v":5178.8,"d":"5,178.80 €"}}]
[]
[]
[null,"Veuillez libeller tous les chèques à l’ordre de :",{"$f":"B3","v":"Nom Entreprise / Entrepreneur"}]
[null,"Nous vous remercions de votre confiance!"]
[]
[null,"Adresse, Code postal, Ville | Tél : 0000000000  | Fax : 0000000000 | Email : …......................................."]